[Event "Rapid Tournament (RAP)"]
[Site "Biel, Switzerland"]
[Date "2026.07.12"]
[Round "9.3"]
[White "Acs, Peter"]
[Black "Aronyak, Ghosh"]
[Result "1/2-1/2"]
[TimeControl "15 + 5"]
[WhiteTitle "-"]
[BlackTitle "-"]
[WhiteFideId "708020"]
[BlackFideId "25072846"]
[WhiteElo "2474"]
[BlackElo "2482"]

1. e4 {[%clk 00:15:07]} {[%emt 00:00:02]} c6 {[%clk 00:15:08]} {[%emt
00:00:03]} 2. d4 {[%clk 00:15:10]} {[%emt 00:00:04]} d5 {[%clk 00:15:12]} 3. e5
{[%clk 00:15:13]} {[%emt 00:00:02]} Bf5 {[%clk 00:15:13]} {[%emt 00:00:05]} 4.
h4 {[%clk 00:15:14]} {[%emt 00:00:02]} h5 {[%clk 00:15:16]} {[%emt 00:00:03]} 5.
c4 {[%clk 00:15:15]} {[%emt 00:00:04]} e6 {[%clk 00:15:08]} {[%emt 00:00:13]} 6.
Nc3 {[%clk 00:15:17]} {[%emt 00:00:03]} Ne7 {[%clk 00:14:50]} {[%emt 00:00:23]}
7. Nge2 {[%clk 00:15:13]} {[%emt 00:00:09]} dxc4 {[%clk 00:14:40]} {[%emt
00:00:16]} 8. Ng3 {[%clk 00:15:11]} {[%emt 00:00:07]} b5 {[%clk 00:14:36]}
{[%emt 00:00:09]} 9. Bg5 {[%clk 00:15:07]} {[%emt 00:00:09]} Qd7 {[%clk
00:13:34]} {[%emt 00:01:08]} 10. Be2 {[%clk 00:14:37]} {[%emt 00:00:35]} Bg6
{[%clk 00:12:49]} {[%emt 00:00:51]} 11. O-O {[%clk 00:13:27]} {[%emt 00:01:14]}
Na6 {[%clk 00:12:38]} {[%emt 00:00:16]} 12. a4 {[%clk 00:12:38]} {[%emt
00:00:54]} Nc7 {[%clk 00:11:57]} {[%emt 00:00:45]} 13. axb5 {[%clk 00:11:53]}
{[%emt 00:00:52]} cxb5 {[%clk 00:11:58]} {[%emt 00:00:03]} 14. b3 {[%clk
00:11:46]} {[%emt 00:00:12]} Nc6 {[%clk 00:10:42]} {[%emt 00:01:21]} 15. bxc4
{[%clk 00:08:41]} {[%emt 00:03:10]} Nxd4 {[%clk 00:10:09]} {[%emt 00:00:37]} 16.
Nxb5 {[%clk 00:08:38]} {[%emt 00:00:09]} Ncxb5 {[%clk 00:08:59]} {[%emt
00:01:16]} 17. cxb5 {[%clk 00:08:39]} {[%emt 00:00:03]} Nxe2+ {[%clk 00:08:28]}
{[%emt 00:00:36]} 18. Qxe2 {[%clk 00:08:25]} {[%emt 00:00:19]} Bc5 {[%clk
00:08:02]} {[%emt 00:00:31]} 19. Rfd1 {[%clk 00:07:58]} {[%emt 00:00:32]} Qb7
{[%clk 00:08:04]} {[%emt 00:00:03]} 20. Qc4 {[%clk 00:06:32]} {[%emt 00:01:31]}
Qb6 {[%clk 00:07:09]} {[%emt 00:01:01]} 21. Ra6 {[%clk 00:06:20]} {[%emt
00:00:16]} Bxf2+ {[%clk 00:06:47]} {[%emt 00:00:27]} 22. Kf1 {[%clk 00:06:23]}
{[%emt 00:00:02]} Qc5 {[%clk 00:06:48]} {[%emt 00:00:05]} 23. Rxe6+ {[%clk
00:03:37]} {[%emt 00:02:50]} fxe6 {[%clk 00:06:50]} {[%emt 00:00:03]} 24. Qxe6+
{[%clk 00:03:37]} {[%emt 00:00:06]} Kf8 {[%clk 00:06:54]} {[%emt 00:00:01]} 25.
Qxg6 {[%clk 00:02:08]} {[%emt 00:01:34]} Bxg3 {[%clk 00:06:40]} {[%emt
00:00:19]} 26. Qf5+ {[%clk 00:01:00]} {[%emt 00:01:13]} Kg8 {[%clk 00:06:30]}
{[%emt 00:00:15]} 27. Qe6+ {[%clk 00:00:49]} {[%emt 00:00:15]} Kh7 {[%clk
00:06:24]} {[%emt 00:00:11]} 28. Qf5+ {[%clk 00:00:38]} {[%emt 00:00:16]} Kg8
{[%clk 00:06:27]} {[%emt 00:00:02]} 29. Qe6+ {[%clk 00:00:34]} {[%emt
00:00:09]} 1/2-1/2

[Event "Rapid Tournament (RAP)"]
[Site "Biel, Switzerland"]
[Date "2026.07.12"]
[Round "9.4"]
[White "Ganguly, Surya Shekhar"]
[Black "Dong, Hongfu"]
[Result "1/2-1/2"]
[TimeControl "15 + 5"]
[WhiteTitle "-"]
[BlackTitle "-"]
[WhiteFideId "5002150"]
[BlackFideId "8626960"]
[WhiteElo "2545"]
[BlackElo "2271"]

1. e4 {[%clk 00:15:08]} {[%emt 00:00:03]} c5 {[%clk 00:15:09]} 2. Nf3 {[%clk
00:15:11]} {[%emt 00:00:01]} d6 {[%clk 00:15:13]} {[%emt 00:00:02]} 3. d4
{[%clk 00:15:14]} {[%emt 00:00:04]} cxd4 {[%clk 00:15:17]} 4. Nxd4 {[%clk
00:15:18]} Nf6 {[%clk 00:15:21]} {[%emt 00:00:01]} 5. Nc3 {[%clk 00:15:22]}
{[%emt 00:00:01]} g6 {[%clk 00:15:25]} 6. Be3 {[%clk 00:15:23]} {[%emt
00:00:04]} Bg7 {[%clk 00:15:29]} {[%emt 00:00:01]} 7. f3 {[%clk 00:15:24]}
{[%emt 00:00:03]} O-O {[%clk 00:15:33]} {[%emt 00:00:02]} 8. Qd2 {[%clk
00:15:24]} {[%emt 00:00:04]} Nc6 {[%clk 00:15:37]} {[%emt 00:00:01]} 9. Bc4
{[%clk 00:15:21]} {[%emt 00:00:08]} Bd7 {[%clk 00:15:41]} {[%emt 00:00:01]} 10.
O-O-O {[%clk 00:15:22]} {[%emt 00:00:04]} Ne5 {[%clk 00:15:40]} {[%emt
00:00:06]} 11. Be2 {[%clk 00:15:19]} {[%emt 00:00:07]} Rc8 {[%clk 00:15:43]}
{[%emt 00:00:03]} 12. Kb1 {[%clk 00:15:21]} {[%emt 00:00:03]} Nc4 {[%clk
00:15:40]} {[%emt 00:00:09]} 13. Bxc4 {[%clk 00:15:24]} {[%emt 00:00:02]} Rxc4
{[%clk 00:15:43]} {[%emt 00:00:01]} 14. g4 {[%clk 00:15:28]} b5 {[%clk
00:15:47]} 15. b3 {[%clk 00:15:32]} b4 {[%clk 00:15:52]} 16. bxc4 {[%clk
00:15:32]} {[%emt 00:00:05]} bxc3 {[%clk 00:15:56]} {[%emt 00:00:01]} 17. Qxc3
{[%clk 00:15:31]} {[%emt 00:00:06]} Qc7 {[%clk 00:16:00]} 18. Rd3 {[%clk
00:14:46]} {[%emt 00:00:49]} Rc8 {[%clk 00:16:00]} {[%emt 00:00:05]} 19. Qb2
{[%clk 00:13:09]} {[%emt 00:01:42]} Qxc4 {[%clk 00:15:20]} {[%emt 00:00:45]} 20.
Rb3 {[%clk 00:12:48]} {[%emt 00:00:25]} h5 {[%clk 00:12:13]} {[%emt 00:03:11]}
21. Rb4 {[%clk 00:11:32]} {[%emt 00:01:21]} Qa6 {[%clk 00:11:45]} {[%emt
00:00:33]} 22. gxh5 {[%clk 00:10:57]} {[%emt 00:00:40]} Nxh5 {[%clk 00:11:40]}
{[%emt 00:00:10]} 23. Rb8 {[%clk 00:10:58]} {[%emt 00:00:04]} Rxb8 {[%clk
00:10:31]} {[%emt 00:01:15]} 24. Qxb8+ {[%clk 00:11:02]} {[%emt 00:00:01]} Kh7
{[%clk 00:10:35]} 25. Qb4 {[%clk 00:10:35]} {[%emt 00:00:31]} Be5 {[%clk
00:09:22]} {[%emt 00:01:19]} 26. h4 {[%clk 00:10:02]} {[%emt 00:00:38]} Ng3
{[%clk 00:09:04]} {[%emt 00:00:23]} 27. Re1 {[%clk 00:09:51]} {[%emt 00:00:16]}
Nf1 {[%clk 00:08:10]} {[%emt 00:00:59]} 28. Bc1 {[%clk 00:09:13]} {[%emt
00:00:42]} Bf6 {[%clk 00:03:25]} {[%emt 00:04:50]} 29. Bg5 {[%clk 00:07:54]}
{[%emt 00:01:24]} Bxd4 {[%clk 00:03:07]} {[%emt 00:00:23]} 30. Qxd4 {[%clk
00:07:58]} {[%emt 00:00:02]} Be6 {[%clk 00:03:12]} 31. Qb2 {[%clk 00:05:54]}
{[%emt 00:02:08]} Nh2 {[%clk 00:02:01]} {[%emt 00:01:17]} 32. Bxe7 {[%clk
00:05:22]} {[%emt 00:00:37]} Nxf3 {[%clk 00:02:05]} {[%emt 00:00:01]} 33. Rh1
{[%clk 00:05:25]} {[%emt 00:00:02]} Nd2+ {[%clk 00:01:48]} {[%emt 00:00:22]} 34.
Kc1 {[%clk 00:04:43]} {[%emt 00:00:47]} Nxe4 {[%clk 00:00:07]} {[%emt
00:01:46]} 35. h5 {[%clk 00:01:31]} {[%emt 00:03:17]} Qxa2 {[%clk 00:00:12]} 36.
hxg6+ {[%clk 00:01:33]} {[%emt 00:00:02]} Kxg6 {[%clk 00:00:16]} 37. Rg1+
{[%clk 00:01:32]} {[%emt 00:00:06]} Kf5 {[%clk 00:00:21]} 38. Rf1+ {[%clk
00:00:27]} {[%emt 00:01:10]} Kg6 {[%clk 00:00:25]} {[%emt 00:00:01]} 39. Rg1+
{[%clk 00:00:16]} {[%emt 00:00:16]} Kf5 {[%clk 00:00:29]} 40. Qd4 {[%clk
00:00:16]} {[%emt 00:00:05]} Qa3+ {[%clk 00:00:31]} {[%emt 00:00:03]} 41. Kd1
{[%clk 00:00:19]} Bc4 {[%clk 00:00:07]} {[%emt 00:00:29]} 42. Qxc4 {[%clk
00:00:10]} {[%emt 00:00:14]} Qf3+ {[%clk 00:00:07]} {[%emt 00:00:04]} 43. Kc1
{[%clk 00:00:14]} Qa3+ {[%clk 00:00:12]} 44. Kd1 {[%clk 00:00:16]} {[%emt
00:00:03]} Qf3+ {[%clk 00:00:16]} 45. Kc1 {[%clk 00:00:20]} {[%emt 00:00:02]}
Qa3+ {[%clk 00:00:10]} {[%emt 00:00:11]} 1/2-1/2

[Event "Rapid Tournament (RAP)"]
[Site "Biel, Switzerland"]
[Date "2026.07.12"]
[Round "9.5"]
[White "Manko, Mariia"]
[Black "Gopal, G.N."]
[Result "0-1"]
[TimeControl "15 + 5"]
[WhiteTitle "-"]
[BlackTitle "-"]
[WhiteFideId "14199220"]
[BlackFideId "5015693"]
[WhiteElo "2210"]
[BlackElo "2471"]

1. d4 {[%clk 00:15:09]} Nf6 {[%clk 00:15:08]} {[%emt 00:00:03]} 2. c4 {[%clk
00:15:13]} e6 {[%clk 00:15:12]} {[%emt 00:00:01]} 3. g3 {[%clk 00:15:17]} d5
{[%clk 00:15:16]} {[%emt 00:00:01]} 4. Bg2 {[%clk 00:15:21]} Bb4+ {[%clk
00:15:19]} {[%emt 00:00:02]} 5. Bd2 {[%clk 00:15:25]} Be7 {[%clk 00:15:23]}
{[%emt 00:00:01]} 6. Nf3 {[%clk 00:15:27]} {[%emt 00:00:03]} O-O {[%clk
00:15:26]} {[%emt 00:00:03]} 7. O-O {[%clk 00:15:23]} {[%emt 00:00:08]} c6
{[%clk 00:15:30]} {[%emt 00:00:01]} 8. Qc2 {[%clk 00:15:26]} {[%emt 00:00:01]}
Nbd7 {[%clk 00:15:34]} {[%emt 00:00:01]} 9. Bf4 {[%clk 00:15:21]} {[%emt
00:00:10]} b6 {[%clk 00:14:48]} {[%emt 00:00:51]} 10. Nbd2 {[%clk 00:15:16]}
{[%emt 00:00:10]} Nh5 {[%clk 00:13:54]} {[%emt 00:01:00]} 11. e3 {[%clk
00:15:17]} {[%emt 00:00:04]} Bb7 {[%clk 00:13:14]} {[%emt 00:00:45]} 12. cxd5
{[%clk 00:15:19]} {[%emt 00:00:03]} exd5 {[%clk 00:12:51]} {[%emt 00:00:28]} 13.
h4 {[%clk 00:15:22]} {[%emt 00:00:01]} Nxf4 {[%clk 00:10:32]} {[%emt 00:02:24]}
14. exf4 {[%clk 00:15:24]} {[%emt 00:00:03]} c5 {[%clk 00:10:30]} {[%emt
00:00:07]} 15. Nb1 {[%clk 00:12:01]} {[%emt 00:03:28]} cxd4 {[%clk 00:08:41]}
{[%emt 00:01:54]} 16. Nxd4 {[%clk 00:11:45]} {[%emt 00:00:21]} Bc5 {[%clk
00:08:45]} {[%emt 00:00:02]} 17. Qd2 {[%clk 00:11:07]} {[%emt 00:00:43]} Nf6
{[%clk 00:08:25]} {[%emt 00:00:25]} 18. Nc3 {[%clk 00:10:06]} {[%emt 00:01:06]}
Ne4 {[%clk 00:08:20]} {[%emt 00:00:10]} 19. Qd3 {[%clk 00:10:02]} {[%emt
00:00:09]} Qf6 {[%clk 00:04:20]} {[%emt 00:04:05]} 20. Rad1 {[%clk 00:09:39]}
{[%emt 00:00:28]} Rfd8 {[%clk 00:04:24]} {[%emt 00:00:01]} 21. Nc2 {[%clk
00:05:19]} {[%emt 00:04:25]} a5 {[%clk 00:02:47]} {[%emt 00:01:42]} 22. Ne3
{[%clk 00:04:01]} {[%emt 00:01:23]} Nxc3 {[%clk 00:00:33]} {[%emt 00:02:20]} 23.
bxc3 {[%clk 00:03:49]} {[%emt 00:00:17]} d4 {[%emt 00:00:56]} 24. Ng4 {[%clk
00:02:29]} {[%emt 00:00:39]} Qe7 {[%clk 00:00:32]} 25. Rfe1 {[%clk 00:02:12]}
{[%emt 00:00:22]} Qc7 {[%clk 00:00:36]} 26. Bxb7 {[%clk 00:01:36]} {[%emt
00:00:41]} Qxb7 {[%clk 00:00:40]} {[%emt 00:00:01]} 27. h5 {[%clk 00:00:54]}
{[%emt 00:00:46]} h6 {[%clk 00:00:40]} {[%emt 00:00:06]} 28. c4 {[%clk
00:00:37]} {[%emt 00:00:22]} Rac8 {[%clk 00:00:39]} {[%emt 00:00:06]} 29. Re5
{[%clk 00:00:24]} {[%emt 00:00:17]} Qc7 {[%clk 00:00:31]} {[%emt 00:00:13]} 30.
Rde1 {[%clk 00:00:11]} {[%emt 00:00:19]} Bf8 {[%clk 00:00:29]} {[%emt
00:00:07]} 31. Rd5 {[%clk 00:00:09]} {[%emt 00:00:07]} Rxd5 {[%clk 00:00:27]}
{[%emt 00:00:07]} 32. cxd5 {[%clk 00:00:13]} {[%emt 00:00:01]} Qd7 {[%clk
00:00:32]} 33. Ne5 {[%clk 00:00:07]} {[%emt 00:00:11]} Qxd5 {[%clk 00:00:36]}
{[%emt 00:00:02]} 34. Rd1 {[%clk 00:00:08]} {[%emt 00:00:04]} Bc5 {[%clk
00:00:38]} {[%emt 00:00:02]} 35. Qf5 {[%clk 00:00:12]} {[%emt 00:00:01]} Rd8
{[%clk 00:00:34]} {[%emt 00:00:09]} 36. Qg4 {[%clk 00:00:10]} {[%emt 00:00:06]}
Qxa2 {[%clk 00:00:26]} {[%emt 00:00:14]} 37. f5 {[%clk 00:00:12]} {[%emt
00:00:04]} f6 {[%clk 00:00:30]} 38. Nc6 {[%clk 00:00:11]} {[%emt 00:00:05]} d3
{[%clk 00:00:12]} {[%emt 00:00:23]} 39. Nxd8 {[%clk 00:00:10]} {[%emt
00:00:06]} Qxf2+ {[%clk 00:00:16]} {[%emt 00:00:02]} 40. Kh1 {[%clk 00:00:14]}
d2 {[%clk 00:00:07]} {[%emt 00:00:13]} 41. Qc4+ {[%clk 00:00:12]} {[%emt
00:00:07]} Kh7 {[%clk 00:00:11]} {[%emt 00:00:02]} 42. Rf1 {[%clk 00:00:08]}
{[%emt 00:00:09]} Qxg3 {[%clk 00:00:14]} {[%emt 00:00:02]} 43. Qe2 {[%clk
00:00:07]} {[%emt 00:00:06]} Qh3+ {[%clk 00:00:18]} {[%emt 00:00:01]} 0-1

[Event "Rapid Tournament (RAP)"]
[Site "Biel, Switzerland"]
[Date "2026.07.12"]
[Round "9.6"]
[White "Cao, Qingfeng"]
[Black "Gloeckler, Christian"]
[Result "0-1"]
[TimeControl "15 + 5"]
[WhiteTitle "-"]
[BlackTitle "-"]
[WhiteFideId "8627568"]
[BlackFideId "34608966"]
[WhiteElo "2265"]
[BlackElo "2332"]

1. d4 {[%clk 00:15:07]} {[%emt 00:00:02]} Nf6 {[%clk 00:15:09]} 2. c4 {[%clk
00:15:05]} {[%emt 00:00:07]} e6 {[%clk 00:15:12]} {[%emt 00:00:02]} 3. Nf3
{[%clk 00:15:06]} {[%emt 00:00:04]} d5 {[%clk 00:15:16]} {[%emt 00:00:02]} 4.
g3 {[%clk 00:15:09]} {[%emt 00:00:02]} Be7 {[%clk 00:15:19]} {[%emt 00:00:02]}
5. Bg2 {[%clk 00:15:12]} {[%emt 00:00:02]} O-O {[%clk 00:15:22]} {[%emt
00:00:02]} 6. O-O {[%clk 00:15:14]} {[%emt 00:00:02]} Nbd7 {[%clk 00:15:26]}
{[%emt 00:00:01]} 7. Qc2 {[%clk 00:15:04]} {[%emt 00:00:14]} a5 {[%clk
00:15:30]} {[%emt 00:00:02]} 8. Nbd2 {[%clk 00:14:30]} {[%emt 00:00:39]} c5
{[%clk 00:15:32]} {[%emt 00:00:03]} 9. b3 {[%clk 00:14:05]} {[%emt 00:00:30]}
b6 {[%clk 00:14:55]} {[%emt 00:00:42]} 10. Bb2 {[%clk 00:14:00]} {[%emt
00:00:09]} Bb7 {[%clk 00:14:48]} {[%emt 00:00:13]} 11. Rac1 {[%clk 00:13:29]}
{[%emt 00:00:36]} Rc8 {[%clk 00:14:06]} {[%emt 00:00:47]} 12. Qb1 {[%clk
00:13:30]} {[%emt 00:00:03]} Rc7 {[%clk 00:13:42]} {[%emt 00:00:30]} 13. dxc5
{[%clk 00:12:02]} {[%emt 00:01:33]} Nxc5 {[%clk 00:12:37]} {[%emt 00:01:11]} 14.
Rfd1 {[%clk 00:11:39]} {[%emt 00:00:27]} Qa8 {[%clk 00:11:15]} {[%emt
00:01:28]} 15. Qa1 {[%clk 00:10:29]} {[%emt 00:01:14]} Rfc8 {[%clk 00:10:29]}
{[%emt 00:00:51]} 16. h4 {[%clk 00:09:22]} {[%emt 00:01:12]} Qa6 {[%clk
00:09:36]} {[%emt 00:00:58]} 17. cxd5 {[%clk 00:06:51]} {[%emt 00:02:36]} Bxd5
{[%clk 00:09:26]} {[%emt 00:00:15]} 18. Nc4 {[%clk 00:06:49]} {[%emt 00:00:07]}
a4 {[%clk 00:08:39]} {[%emt 00:00:53]} 19. Be5 {[%clk 00:06:24]} {[%emt
00:00:29]} Rd7 {[%clk 00:07:30]} {[%emt 00:01:15]} 20. Nfd2 {[%clk 00:05:17]}
{[%emt 00:01:12]} axb3 {[%clk 00:06:34]} {[%emt 00:01:01]} 21. axb3 {[%clk
00:04:51]} {[%emt 00:00:30]} Qxa1 {[%clk 00:06:35]} {[%emt 00:00:05]} 22. Rxa1
{[%clk 00:04:46]} {[%emt 00:00:10]} Bxg2 {[%clk 00:05:37]} {[%emt 00:01:02]} 23.
Kxg2 {[%clk 00:04:18]} {[%emt 00:00:33]} Rcd8 {[%clk 00:05:31]} {[%emt
00:00:11]} 24. Bf4 {[%clk 00:01:22]} {[%emt 00:03:01]} Nd5 {[%clk 00:05:02]}
{[%emt 00:00:34]} 25. Rdb1 {[%clk 00:00:10]} {[%emt 00:01:17]} Nxf4+ {[%clk
00:05:02]} {[%emt 00:00:06]} 26. gxf4 {[%clk 00:00:14]} b5 {[%clk 00:04:45]}
{[%emt 00:00:22]} 27. Ne5 {[%clk 00:00:14]} {[%emt 00:00:05]} Rxd2 {[%clk
00:04:47]} {[%emt 00:00:03]} 28. Nc6 {[%clk 00:00:16]} {[%emt 00:00:03]} Bf6
{[%clk 00:04:45]} {[%emt 00:00:07]} 29. Ra5 {[%clk 00:00:07]} {[%emt 00:00:14]}
Re8 {[%clk 00:04:36]} {[%emt 00:00:14]} 30. Rxb5 {[%clk 00:00:07]} {[%emt
00:00:05]} Ne4 {[%clk 00:04:39]} {[%emt 00:00:01]} 31. Rb7 {[%clk 00:00:08]}
{[%emt 00:00:04]} Rxe2 {[%clk 00:04:21]} {[%emt 00:00:23]} 32. Kf3 {[%clk
00:00:11]} {[%emt 00:00:02]} Rc2 {[%clk 00:04:20]} {[%emt 00:00:06]} 33. Kxe4
{[%clk 00:00:10]} {[%emt 00:00:06]} Rxc6 {[%clk 00:04:23]} {[%emt 00:00:03]} 34.
b4 {[%clk 00:00:14]} {[%emt 00:00:02]} Rd8 {[%clk 00:04:20]} {[%emt 00:00:08]}
35. b5 {[%clk 00:00:16]} {[%emt 00:00:03]} Rc3 {[%clk 00:04:23]} {[%emt
00:00:02]} 36. Rb4 {[%clk 00:00:16]} {[%emt 00:00:04]} Rcd3 {[%clk 00:03:44]}
{[%emt 00:00:44]} 37. b6 {[%clk 00:00:17]} {[%emt 00:00:04]} Bc3 {[%clk
00:03:45]} {[%emt 00:00:04]} 0-1

[Event "Rapid Tournament (RAP)"]
[Site "Biel, Switzerland"]
[Date "2026.07.12"]
[Round "9.7"]
[White "Savitha, Shri B"]
[Black "Rohrer, Christophe"]
[Result "1/2-1/2"]
[TimeControl "15 + 5"]
[WhiteTitle "-"]
[BlackTitle "-"]
[WhiteFideId "35061887"]
[BlackFideId "1326546"]
[WhiteElo "2317"]
[BlackElo "2202"]

1. e4 {[%clk 00:15:09]} {[%emt 00:00:01]} e5 {[%clk 00:15:09]} {[%emt
00:00:01]} 2. Nf3 {[%clk 00:15:13]} {[%emt 00:00:01]} Nc6 {[%clk 00:15:12]}
{[%emt 00:00:03]} 3. Bb5 {[%clk 00:15:17]} a6 {[%clk 00:15:15]} {[%emt
00:00:01]} 4. Ba4 {[%clk 00:15:21]} {[%emt 00:00:01]} d6 {[%clk 00:15:19]}
{[%emt 00:00:01]} 5. c3 {[%clk 00:15:21]} {[%emt 00:00:05]} Bg4 {[%clk
00:15:22]} {[%emt 00:00:01]} 6. h3 {[%clk 00:14:38]} {[%emt 00:00:48]} Bh5
{[%clk 00:15:26]} {[%emt 00:00:02]} 7. O-O {[%clk 00:14:30]} {[%emt 00:00:13]}
Nf6 {[%clk 00:15:16]} {[%emt 00:00:15]} 8. Re1 {[%clk 00:14:08]} {[%emt
00:00:27]} Be7 {[%clk 00:15:02]} {[%emt 00:00:18]} 9. d3 {[%clk 00:13:16]}
{[%emt 00:00:59]} Nd7 {[%clk 00:13:36]} {[%emt 00:01:30]} 10. b4 {[%clk
00:13:08]} {[%emt 00:00:13]} h6 {[%clk 00:13:07]} {[%emt 00:00:34]} 11. Nbd2
{[%clk 00:13:08]} {[%emt 00:00:05]} Nf8 {[%clk 00:12:08]} {[%emt 00:01:04]} 12.
Nf1 {[%clk 00:13:03]} {[%emt 00:00:10]} Ne6 {[%clk 00:12:06]} {[%emt 00:00:06]}
13. Ng3 {[%clk 00:13:06]} {[%emt 00:00:02]} Bxf3 {[%clk 00:12:09]} {[%emt
00:00:03]} 14. Qxf3 {[%clk 00:13:09]} {[%emt 00:00:02]} Bg5 {[%clk 00:12:00]}
{[%emt 00:00:14]} 15. Bb3 {[%clk 00:12:50]} {[%emt 00:00:24]} Qf6 {[%clk
00:10:24]} {[%emt 00:01:41]} 16. Qxf6 {[%clk 00:11:38]} {[%emt 00:01:17]} Bxf6
{[%clk 00:10:24]} {[%emt 00:00:04]} 17. Be3 {[%clk 00:11:01]} {[%emt 00:00:43]}
g6 {[%clk 00:10:05]} {[%emt 00:00:24]} 18. a4 {[%clk 00:11:03]} {[%emt
00:00:03]} a5 {[%clk 00:09:52]} {[%emt 00:00:18]} 19. b5 {[%clk 00:11:00]}
{[%emt 00:00:08]} Ncd8 {[%clk 00:09:38]} {[%emt 00:00:19]} 20. Ne2 {[%clk
00:11:00]} {[%emt 00:00:03]} Bg5 {[%clk 00:09:37]} {[%emt 00:00:08]} 21. Bxg5
{[%clk 00:10:11]} {[%emt 00:00:54]} hxg5 {[%clk 00:09:24]} {[%emt 00:00:18]} 22.
d4 {[%clk 00:10:15]} {[%emt 00:00:01]} Rh4 {[%clk 00:08:38]} {[%emt 00:00:51]}
23. f3 {[%clk 00:10:19]} {[%emt 00:00:01]} f6 {[%clk 00:08:12]} {[%emt
00:00:31]} 24. Red1 {[%clk 00:09:28]} {[%emt 00:00:55]} Ke7 {[%clk 00:08:09]}
{[%emt 00:00:09]} 25. Rab1 {[%clk 00:09:25]} {[%emt 00:00:08]} b6 {[%clk
00:08:00]} {[%emt 00:00:14]} 26. Kh2 {[%clk 00:08:16]} {[%emt 00:01:14]} Nf4
{[%clk 00:07:44]} {[%emt 00:00:21]} 27. Ng1 {[%clk 00:06:50]} {[%emt 00:01:31]}
Rh7 {[%clk 00:07:23]} {[%emt 00:00:25]} 28. g3 {[%clk 00:06:54]} {[%emt
00:00:02]} Nfe6 {[%clk 00:07:13]} {[%emt 00:00:15]} 29. Kg2 {[%clk 00:06:42]}
{[%emt 00:00:17]} Nf7 {[%clk 00:06:49]} {[%emt 00:00:28]} 30. Ne2 {[%clk
00:06:43]} {[%emt 00:00:04]} Rah8 {[%clk 00:06:50]} {[%emt 00:00:04]} 31. Rh1
{[%clk 00:06:47]} {[%emt 00:00:01]} Rh6 {[%clk 00:05:53]} {[%emt 00:01:02]} 32.
Rbf1 {[%clk 00:06:47]} {[%emt 00:00:05]} Nfd8 {[%clk 00:05:31]} {[%emt
00:00:27]} 33. Bd5 {[%clk 00:06:40]} {[%emt 00:00:13]} R6h7 {[%clk 00:05:19]}
{[%emt 00:00:17]} 34. Rd1 {[%clk 00:06:15]} {[%emt 00:00:30]} Rh6 {[%clk
00:05:18]} {[%emt 00:00:06]} 35. Nc1 {[%clk 00:06:18]} {[%emt 00:00:02]} Nf7
{[%clk 00:05:02]} {[%emt 00:00:21]} 36. Nb3 {[%clk 00:06:20]} {[%emt 00:00:03]}
R6h7 {[%clk 00:04:43]} {[%emt 00:00:24]} 37. Na1 {[%clk 00:06:24]} {[%emt
00:00:02]} f5 {[%clk 00:04:32]} {[%emt 00:00:16]} 38. Nc2 {[%clk 00:05:58]}
{[%emt 00:00:30]} f4 {[%clk 00:04:20]} {[%emt 00:00:17]} 39. g4 {[%clk
00:05:46]} {[%emt 00:00:17]} Rd8 {[%clk 00:03:16]} {[%emt 00:01:09]} 40. Na3
{[%clk 00:05:49]} {[%emt 00:00:02]} Rhh8 {[%clk 00:03:10]} {[%emt 00:00:11]} 41.
Nc4 {[%clk 00:05:46]} {[%emt 00:00:08]} Kf6 {[%clk 00:02:52]} {[%emt 00:00:22]}
42. Rd2 {[%clk 00:05:27]} {[%emt 00:00:24]} Ke7 {[%clk 00:02:04]} {[%emt
00:00:54]} 43. Rhd1 {[%clk 00:05:09]} {[%emt 00:00:23]} Rhf8 {[%clk 00:01:51]}
{[%emt 00:00:17]} 44. Bc6 {[%clk 00:02:40]} {[%emt 00:02:35]} exd4 {[%clk
00:01:15]} {[%emt 00:00:41]} 45. cxd4 {[%clk 00:02:42]} {[%emt 00:00:03]} Rh8
{[%clk 00:01:19]} {[%emt 00:00:01]} 46. Bd5 {[%clk 00:02:33]} {[%emt 00:00:14]}
Rh7 {[%clk 00:01:05]} {[%emt 00:00:19]} 47. Na3 {[%clk 00:02:24]} {[%emt
00:00:14]} Rdh8 {[%clk 00:00:58]} {[%emt 00:00:11]} 48. Rh1 {[%clk 00:02:28]}
Kd7 {[%clk 00:00:37]} {[%emt 00:00:28]} 49. Nb1 {[%clk 00:02:22]} {[%emt
00:00:11]} Nfd8 {[%clk 00:00:38]} {[%emt 00:00:03]} 50. Nc3 {[%clk 00:02:16]}
{[%emt 00:00:11]} Kc8 {[%clk 00:00:22]} {[%emt 00:00:21]} 51. Ba2 {[%clk
00:01:53]} {[%emt 00:00:28]} Kb7 {[%clk 00:00:22]} {[%emt 00:00:06]} 52. Nd5
{[%clk 00:01:22]} {[%emt 00:00:35]} Rf7 {[%clk 00:00:25]} {[%emt 00:00:02]} 53.
Bb3 {[%clk 00:00:54]} {[%emt 00:00:33]} Rfh7 {[%clk 00:00:26]} {[%emt
00:00:03]} 54. Nf6 {[%clk 00:00:54]} {[%emt 00:00:05]} Rf7 {[%clk 00:00:31]} 55.
e5 {[%clk 00:00:55]} {[%emt 00:00:04]} dxe5 {[%clk 00:00:21]} {[%emt 00:00:15]}
56. dxe5 {[%clk 00:00:59]} Re7 {[%clk 00:00:26]} 57. Ne4 {[%clk 00:00:51]}
{[%emt 00:00:13]} Nf7 {[%clk 00:00:26]} {[%emt 00:00:06]} 58. Re1 {[%clk
00:00:38]} {[%emt 00:00:17]} Rhe8 {[%clk 00:00:15]} {[%emt 00:00:16]} 59. Rd5
{[%clk 00:00:28]} {[%emt 00:00:14]} Rd8 {[%clk 00:00:15]} {[%emt 00:00:05]} 60.
Rxd8 {[%clk 00:00:26]} {[%emt 00:00:08]} Nfxd8 {[%clk 00:00:20]} 61. Bd5+
{[%clk 00:00:17]} {[%emt 00:00:13]} Kb8 {[%clk 00:00:24]} 62. Rc1 {[%clk
00:00:13]} {[%emt 00:00:08]} Nf7 {[%clk 00:00:28]} {[%emt 00:00:02]} 63. Rc6
{[%clk 00:00:18]} Nfd8 {[%clk 00:00:25]} {[%emt 00:00:08]} 64. Rc1 {[%clk
00:00:21]} {[%emt 00:00:02]} Nf7 {[%clk 00:00:30]} {[%emt 00:00:01]} 65. Rc6
{[%clk 00:00:24]} Nfd8 {[%clk 00:00:34]} 66. Rc3 {[%clk 00:00:29]} Nf7 {[%clk
00:00:38]} 67. Rc6 {[%clk 00:00:13]} {[%emt 00:00:21]} Nfd8 {[%clk 00:00:42]}
{[%emt 00:00:01]} 68. Rc1 {[%clk 00:00:10]} {[%emt 00:00:08]} Nf7 {[%clk
00:00:46]} 69. Rc6 {[%clk 00:00:09]} {[%emt 00:00:06]} 1/2-1/2